[Event "Sardinia World Festival-A 2024"]
[Site "Orosei"]
[Date "2024.04.27"]
[Round "1.25"]
[White "Velten, Paul"]
[Black "Gagliardi, Cristian"]
[Result "1-0"]
[ECO "D38"]
[WhiteElo "2481"]
[BlackElo "2195"]
[Annotator "TA"]
[PlyCount "87"]
[EventDate "2024.04.26"]
[EventType "swiss"]
[EventCountry "ITA"]
[SourceTitle "playchess.com"]
[Source "ChessBase"]
[SourceQuality "1"]
[TimeControl "40/5400+30:1800+30"]

{[%evp 10,87,41,1,17,0,21,17,25,21,33,15,20,21,18,8,0,11,7,5,25,46,68,60,70,31,64,64,118,22,55,41,60,62,72,68,81,39,42,25,47,42,56,27,35,0,0,-17,-17,-21,-3,-53,-9,-50,34,0,33,10,59,0,32,13,73,0,66,68,111,111,96,114,113,73,191,190,175,0,448,433,447,417]} 1. d4 {[%emt 0:00:13]} Nf6 {[%emt 0:00:58]} 2. c4 {[%emt 0:00:43]} e6 {[%emt 0:00:24]} 3. Nf3 {[%emt 0:00:48]} d5 {[%emt 0:00:37]} 4. Nc3 {[%emt 0:01:03]} Bb4 {[%emt 0:01:29]} 5. Bg5 {[%emt 0:01:04]} Nbd7 {[%emt 0:01:40]} 6. Qb3 {[%emt 0:04:48]} c5 {[%emt 0:02:21]} 7. a3 {[%emt 0:15:23]} Qa5 {[%emt 0:05:21]} 8. Bd2 {[%emt 0:00:47][%cal Rc4d5]} O-O {[%emt 0:04:08] The position is equal.} 9. cxd5 {[%emt 0:07:05]} exd5 {[%emt 0:00:20]} 10. e3 {[%emt 0:01:02]} (10. axb4 Qxa1+ 11. Qd1 Qxd1+ (11... Qxb2 $2 12. bxc5 b5 13. e3 $19) 12. Nxd1 c4 $19) 10... Bxc3 {[%emt 0:09:48]} 11. Bxc3 {[%emt 0:00:49]} Qb6 {[%emt 0:00:26]} 12. Qc2 {[%emt 0:05:25]} c4 {[%emt 0:05:59]} 13. Nd2 {[%emt 0:01:03] Prevents Ne4} Re8 {[%emt 0:03:00]} 14. Be2 {[%emt 0:00:16]} Qc6 {[%emt 0:03:31]} 15. a4 {[%emt 0:01:18]} g6 {[%emt 0:05:40]} 16. b3 {[%emt 0:01:25][%cal Rb3c4]} Nb6 {[%emt 0:09:08]} 17. O-O {[%emt 0:05:04] And now a5 would win.} Bf5 {[%emt 0:02:42]} 18. Qb2 {[%emt 0:00:28] Hoping for a5.} Bg4 {[%emt 0:02:58]} (18... Rec8 $14) 19. Nf3 {[%emt 0:03:59]} ({White must play} 19. Bxg4 $16 Nxg4 20. a5) 19... Ne4 {[%emt 0:06:11]} 20. Rfc1 {[%emt 0:02:46]} (20. Rac1 {is more complex.} a5 21. Ne5 Rxe5 22. dxe5 Bxe2 23. Qxe2 cxb3 24. Bd4) 20... Bxf3 {[%emt 0:07:28]} 21. gxf3 {[%emt 0:03:33]} Nxc3 {[%emt 0:00:50]} 22. Qxc3 {[%emt 0:03:22]} a5 {[%emt 0:06:36]} 23. f4 {[%emt 0:00:19]} Rec8 {[%emt 0:01:15]} 24. Bf1 {[%emt 0:02:37]} Qd6 {[%emt 0:06:27]} 25. Rcb1 {[%emt 0:02:38]} Rc7 {[%emt 0:00:45]} 26. Bg2 {[%emt 0:03:33]} Ra6 {[%emt 0:06:38]} 27. bxc4 {[%emt 0:03:15]} Rxc4 {[%emt 0:02:21]} 28. Qb3 {[%emt 0:00:11]} Rb4 {[%emt 0:00:18]} 29. Qd1 {[%emt 0:00:23]} Nc4 {[%emt 0:02:04]} 30. h4 {[%emt 0:05:37]} (30. Qg4 $11) 30... Kg7 {[%emt 0:02:09]} 31. h5 {[%emt 0:01:07]} Ra8 {[%emt 0:00:20]} ({Better is} 31... Qd7 $15) 32. Rc1 {[%emt 0:00:40]} Rd8 {[%emt 0:00:26]} 33. Qg4 {[%emt 0:00:36]} f5 {[%emt 0:00:40]} (33... Qe7 $11) 34. Qe2 {[%emt 0:01:54]} (34. Qh4 $14) 34... Qc6 {[%emt 0:00:16]} 35. Rcb1 {[%emt 0:02:47]} Qb6 {[%emt 0:01:38]} (35... Qd6 $11 {keeps the balance.}) 36. Qa2 {[%emt 0:01:21]} (36. Rxb4 $16 Qxb4 37. Qc2) 36... Rd7 {[%emt 0:01:00]} ({Black should play} 36... Qd6 $1 $11) 37. Rxb4 $14 {[%emt 0:00:15]} Qxb4 {[%emt 0:00:10]} 38. Rb1 {[%emt 0:00:18]} Qc3 {[%emt 0:00:45]} 39. Kh2 $36 {[%emt 0:01:40][%mdl 2048] Black is under strong pressure.} Nd2 {[%emt 0:00:41]} 40. Rb5 {[%emt 0:00:47]} Ne4 {[%emt 0:00:30]} (40... Qd3 $16) 41. Bxe4 $18 {[%emt 0:31:19]} ({Worse is} 41. Rxd5 Rxd5 42. Qxd5 Nxf2 $11) 41... dxe4 {[%emt 0:30:24]} 42. Qe6 $2 {[%emt 0:00:29] [#]} (42. hxg6 $18 hxg6 43. Kg2 (43. Qe6 Qc2 $11)) 42... Qc7 $2 {[%emt 0:00:00][%mdl 8192]} (42... Qd2 $11 {and Black is okay.} 43. Qxd7+ Kh6) 43. hxg6 {[%emt 0:00:00]} hxg6 {[%emt 0:00:00][%cal Oc7c2]} 44. Rb6 {[%emt 0:00:00] Weighted Error Value: White=0.28 (precise) /Black=0.42.  Loses game:     	---       	Black=1      Missed win:     	White=1     	---        Mistake:       	White=4     	Black=6      Inaccurate:     	White=7     	Black=6      OK:         	White=10    	Black=10     Best:        	White=3     	---} 1-0

[Event "Sardinia World Festival-A 2024"]
[Site "Orosei"]
[Date "2024.04.27"]
[Round "1.26"]
[White "Corvi, Marco"]
[Black "Girel, Joseph"]
[Result "0-1"]
[ECO "A13"]
[WhiteElo "2185"]
[BlackElo "2479"]
[Annotator "TA"]
[PlyCount "82"]
[EventDate "2024.04.26"]
[EventType "swiss"]
[EventCountry "ITA"]
[SourceTitle "playchess.com"]
[Source "ChessBase"]
[SourceQuality "1"]
[TimeControl "40/5400+30:1800+30"]

{[%evp 9,82,7,14,-6,0,-14,-12,-8,-7,-10,-17,-19,-14,-39,-20,-18,-10,-19,-16,-30,0,0,0,0,0,-5,0,-68,-71,-77,-84,-79,-45,-124,-116,-136,-133,-137,-111,-120,-110,-113,-120,-135,-130,-165,-177,-169,-141,-156,-150,-189,-151,-142,-145,-135,-137,-186,-128,-351,-318,-544,-544,-550,-556,-536,-526,-6149,-5514,-29986,-708,-29987,-29988,-29987,-29988]} 1. Nf3 {[%emt 0:02:31]} d5 {[%emt 0:01:14]} 2. e3 {[%emt 0:00:42]} Nf6 {[%emt 0:02:10]} 3. c4 {[%emt 0:00:54]} e6 {[%emt 0:00:10]} 4. b3 {[%emt 0:01:06]} b6 {[%emt 0:04:48]} 5. Bb2 {[%emt 0:00:45]} Bb7 {[%emt 0:00:07]} 6. cxd5 {[%emt 0:02:02]} exd5 {[%emt 0:00:09]} 7. Bb5+ {[%emt 0:00:21]} c6 {[%emt 0:03:48]} 8. Be2 {[%emt 0:00:19] The position is equal.} Nbd7 {[%emt 0:00:57]} 9. O-O {[%emt 0:00:28]} Bd6 {[%emt 0:00:34]} 10. Ba3 {[%emt 0:10:44]} c5 {[%emt 0:01:45]} 11. Nd4 {[%emt 0:12:17]} Qb8 {[%emt 0:09:57]} 12. Nf3 {[%emt 0:11:51]} O-O {[%emt 0:02:26][%cal Od5d4]} 13. d4 {[%emt 0:00:52]} Ne4 {[%emt 0:02:58]} 14. h3 {[%emt 0:04:04]} Re8 {[%emt 0:03:24]} 15. Bb2 {[%emt 0:05:12]} Ndf6 {[%emt 0:05:00]} 16. Nc3 {[%emt 0:01:18]} Nxc3 {[%emt 0:03:01]} 17. Bxc3 {[%emt 0:00:06]} c4 {[%emt 0:03:53]} 18. Rc1 {[%emt 0:22:30]} (18. bxc4 $11 dxc4 19. Bxc4) 18... b5 $15 {[%emt 0:01:14]} 19. Bb2 {[%emt 0:02:23]} Qd8 {[%emt 0:02:54]} 20. Ne5 {[%emt 0:03:01]} Nd7 {[%emt 0:03:24]} 21. f4 {[%emt 0:01:17]} (21. Bf3 $15) 21... f6 {[%emt 0:00:59]} 22. Nxd7 {[%emt 0:00:31]} Qxd7 {[%emt 0:00:08]} 23. Rf3 {[%emt 0:00:59]} Re4 {[%emt 0:02:33]} 24. Rc2 {[%emt 0:02:08]} a5 {[%emt 0:03:03]} 25. Bc1 {[%emt 0:04:08]} a4 {[%emt 0:00:48] Black is much more active.} 26. bxc4 {[%emt 0:00:15]} dxc4 {[%emt 0:00:51]} 27. Rg3 {[%emt 0:00:36]} Rae8 {[%emt 0:01:37]} 28. Bh5 {[%emt 0:04:12]} R8e7 {[%emt 0:01:52][%cal Od6f4] ...Bxf4! is the strong threat.} 29. Kh2 {[%emt 0:02:53]} f5 {[%emt 0:05:39]} 30. Bf3 {[%emt 0:00:10]} R4e6 {[%emt 0:00:49]} 31. d5 {[%emt 0:00:06]} Rg6 {[%emt 0:00:06]} 32. Rxg6 {[%emt 0:00:19]} hxg6 {[%emt 0:00:02]} 33. g4 {[%emt 0:01:07]} (33. Qd4 $17) 33... g5 {[%emt 0:02:50]} ({Black should play} 33... a3 $19 34. Bg2 Qc7) 34. gxf5 $2 {[%emt 0:00:23] Now White is beyond hope.} (34. Qd4 $17) 34... Qxf5 $19 {[%emt 0:00:13][%cal Rg5f4]} 35. Bg4 $2 {[%emt 0:00:48]} (35. e4 {was worth a try.} Rxe4 (35... Bxf4+ 36. Kg1 $19) 36. Bxe4 Qxe4 37. Re2 Qxd5 (37... Bxf4+ 38. Bxf4 Qxf4+ 39. Kg2 $19) 38. Qxd5+ Bxd5 39. Kg1) 35... Qd3 {[%emt 0:01:24]} (35... Qxd5 36. Qxd5+ Bxd5 37. Rd2 Rxe3 38. Rxd5 Bxf4+ 39. Kg2 Rg3+ 40. Kf2 $18) 36. Qxd3 {[%emt 0:02:08]} cxd3 {[%emt 0:00:02]} 37. Rc3 {[%emt 0:00:49]} gxf4 {[%emt 0:00:09]} (37... Bxd5 $2 {too greedy.} 38. Rxd3 Bxf4+ 39. exf4 $18) 38. Be6+ {[%emt 0:00:14] [#]} Rxe6 $1 {[%emt 0:00:13][%mdl 512]} 39. dxe6 {[%emt 0:00:08]} (39. e4 Rxe4) 39... fxe3+ {[%emt 0:01:00]} 40. Kg1 {[%emt 0:00:12]} e2 {[%emt 0:04:33][%cal Re2e1]} 41. Bd2 {[%emt 0:32:51] [#]} Bf4 $1 {[%emt 0:30:12][%mdl 512] Weighted Error Value: White=0.65/Black=0.10 (very precise) .  Loses game:     	White=1     	---        Mistake:       	White=4     	Black=1      Inaccurate:     	White=2     	Black=2      OK:         	White=12    	Black=10     Brilliant:      	---       	Black=1} 0-1

[Event "Sardinia World Festival-A 2024"]
[Site "Orosei"]
[Date "2024.04.27"]
[Round "1.27"]
[White "Costa, Leonardo"]
[Black "Siekanska, Maria"]
[Result "1-0"]
[ECO "C55"]
[WhiteElo "2476"]
[BlackElo "2181"]
[Annotator "TA"]
[PlyCount "88"]
[EventDate "2024.04.26"]
[EventType "swiss"]
[EventCountry "ITA"]
[SourceTitle "playchess.com"]
[Source "ChessBase"]
[SourceQuality "1"]
[TimeControl "40/5400+30:1800+30"]

{[%evp 10,88,76,78,94,94,115,108,100,109,117,110,116,118,131,120,135,130,142,129,162,172,141,159,204,206,183,147,146,158,149,151,156,154,149,163,177,167,175,150,150,128,163,168,158,160,171,165,164,173,181,172,250,261,253,249,260,262,258,264,308,299,335,327,331,350,410,377,381,342,1063,914,937,1112,1207,841,1310,1268,1787,1388,775]} 1. e4 {[%emt 0:00:02]} e5 {[%emt 0:00:07]} 2. Nf3 {[%emt 0:00:04]} Nc6 {[%emt 0:00:05]} 3. Bc4 {[%emt 0:00:04]} Nf6 {[%emt 0:00:08]} 4. d3 {[%emt 0:00:04]} d6 {[%emt 0:01:13]} 5. Ng5 {[%emt 0:13:34]} d5 {[%emt 0:00:06]} 6. exd5 {[%emt 0:01:02]} Na5 {[%emt 0:00:03][%cal Oh7h6]} 7. Bb5+ {[%emt 0:06:54]} c6 {[%emt 0:00:07]} 8. dxc6 {[%emt 0:00:04]} bxc6 {[%emt 0:00:03] [#] White is better.} 9. Ba4 {[%emt 0:00:03]} Be7 {[%emt 0:13:18]} 10. O-O {[%emt 0:03:24]} O-O {[%emt 0:00:24]} 11. Nc3 {[%emt 0:06:28]} Nd5 {[%emt 0:14:05]} 12. Qh5 {[%emt 0:09:49][%csl Gg5][%cal Rh5h7]} Bf5 {[%emt 0:01:37]} 13. Nge4 {[%emt 0:05:54]} Bxe4 {[%emt 0:13:49]} 14. Nxe4 {[%emt 0:01:25]} f5 {[%emt 0:02:17]} 15. Ng5 {[%emt 0:01:09]} Bxg5 {[%emt 0:05:05]} 16. Bxg5 {[%emt 0:00:53]} Qb6 {[%emt 0:00:42]} 17. Bd2 {[%emt 0:04:39]} Nb7 {[%emt 0:03:32]} 18. Bb3 {[%emt 0:03:06] Hoping for c4.} Nc5 {[%emt 0:03:05]} 19. Bc3 {[%emt 0:05:09]} Nxb3 {[%emt 0:04:42]} 20. axb3 {[%emt 0:00:05]} Nxc3 {[%emt 0:02:48]} 21. bxc3 {[%emt 0:00:05]} Qc5 {[%emt 0:02:32]} 22. c4 {[%emt 0:00:12]} Rae8 {[%emt 0:06:15]} 23. Rfe1 {[%emt 0:01:08]} Qd4 {[%emt 0:00:55]} 24. Qf3 {[%emt 0:03:18]} e4 {[%emt 0:02:26]} 25. Qe3 {[%emt 0:09:34]} Qc3 {[%emt 0:08:51]} 26. dxe4 {[%emt 0:00:05][%cal Bd3e4,Be4e5][%mdl 32]} (26. Qxa7 $2 {perishes.} exd3 27. Rf1 (27. Rxe8 $2 Rxe8 28. g3 dxc2 $19) 27... dxc2 $19 (27... Qxc2 28. Qd7 $15)) (26. Rxa7 f4 27. Qe2 e3) 26... Qxc2 {[%emt 0:00:20]} 27. e5 {[%emt 0:00:03][%cal Oe5e6]} (27. Rxa7 Rxe4 28. Qc1 Qxb3 $11) 27... f4 {[%emt 0:00:33]} 28. Qe4 {[%emt 0:00:04]} Qxe4 {[%emt 0:05:50]} 29. Rxe4 $18 {[%emt 0:00:05][%mdl 4096] Endgame. KRR-KRR} Re7 {[%emt 0:00:50]} 30. h4 {[%emt 0:03:37]} Rfe8 {[%emt 0:02:52]} (30... Rf5 {keeps fighting.} 31. Ra5 g5 32. hxg5 Rxg5) 31. Rxf4 {[%emt 0:00:43]} Rb8 {[%emt 0:01:01]} 32. Ra6 {[%emt 0:06:29]} Rxb3 {[%emt 0:01:38]} 33. Rxc6 {[%emt 0:00:06] Threatening mate with Rc8+.} g6 {[%emt 0:00:17][%cal Bg7g6,Bg6h5][%mdl 32]} 34. Re4 {[%emt 0:01:16]} Rb4 {[%emt 0:01:34]} 35. Ra6 {[%emt 0:01:55]} Kf7 {[%emt 0:00:17]} 36. Kh2 {[%emt 0:00:28]} Rc7 {[%emt 0:00:40]} 37. Kg3 {[%emt 0:00:46]} Ke7 {[%emt 0:02:23] [#]} 38. h5 $1 {[%emt 0:00:56]} gxh5 {[%emt 0:00:58]} (38... Rb3+ 39. Kg4) 39. Rh6 {[%emt 0:00:04]} Rbxc4 $2 {[%emt 0:00:39]} (39... Ke8 40. f4 (40. Rxh5 a5 $18) 40... Rb1) 40. Rxc4 {[%emt 0:01:36] White is clearly winning.} Rxc4 {[%emt 0:00:02]} 41. Rxh7+ {[%emt 0:30:07]} Ke6 {[%emt 0:30:05]} 42. Rxh5 {[%emt 0:00:45]} a5 {[%emt 0:00:10][%cal Ba7a5,Ba5a4][%mdl 32]} 43. f4 {[%emt 0:00:52]} a4 {[%emt 0:01:06]} 44. Kg4 {[%emt 0:01:39]} Kd5 {[%emt 0:01:57] Weighted Error Value: White=0.07 (flawless) /Black=0.13 (very precise) .  Mistake:       	---       	Black=2      OK:         	White=18    	Black=11     Best:        	---       	Black=2} 1-0

[Event "Sardinia World Festival-A 2024"]
[Site "Orosei"]
[Date "2024.04.27"]
[Round "1.28"]
[White "Iliaguev, Daniel"]
[Black "Stoyanov, Tsvetan"]
[Result "0-1"]
[ECO "A29"]
[WhiteElo "2177"]
[BlackElo "2473"]
[Annotator "TA"]
[PlyCount "91"]
[EventDate "2024.04.26"]
[EventType "swiss"]
[EventCountry "ITA"]
[SourceTitle "playchess.com"]
[Source "ChessBase"]
[SourceQuality "1"]
[TimeControl "40/5400+30:1800+30"]

{[%evp 16,91,13,12,0,3,12,0,0,0,1,-15,0,-6,-13,-4,0,0,0,0,0,0,70,17,14,16,35,10,12,12,22,10,17,13,14,6,8,1,22,2,0,0,0,-8,0,-21,-19,-24,-14,-35,-37,-33,-24,-163,-163,-163,-158,-1172,-1200,-1094,-798,-1127,-1137,-1188,-1087,-2558,-2866,-3229,-3831,-2465,-2279,-12822,-12827,-29955,-29960,-29954,-29963,-11276]} 1. c4 {[%emt 0:00:08]} e5 {[%emt 0:00:19]} 2. Nf3 {[%emt 0:00:08]} Nc6 {[%emt 0:01:12]} 3. g3 {[%emt 0:00:35]} Bc5 {[%emt 0:05:14]} 4. Nc3 {[%emt 0:12:01]} Nf6 {[%emt 0:02:59]} 5. d3 {[%emt 0:01:52]} d5 {[%emt 0:02:34]} 6. cxd5 {[%emt 0:00:10]} Nxd5 {[%emt 0:00:05]} 7. Bg2 {[%emt 0:01:16]} O-O {[%emt 0:01:04]} 8. O-O {[%emt 0:01:42]} Nxc3 {[%emt 0:15:57]} 9. bxc3 {[%emt 0:00:09]} Re8 {[%emt 0:00:55]} 10. Qc2 {[%emt 0:10:37]} h6 {[%emt 0:06:18]} 11. Rb1 {[%emt 0:04:26]} Bb6 {[%emt 0:04:53] The position is equal.} 12. Rd1 {[%emt 0:10:53]} Bf5 {[%emt 0:05:35]} 13. e4 {[%emt 0:05:37]} Be6 {[%emt 0:09:19]} 14. d4 {[%emt 0:30:30]} exd4 {[%emt 0:01:53]} 15. cxd4 {[%emt 0:00:03]} Bg4 {[%emt 0:01:20]} (15... Bxd4 $2 {is the wrong capture.} 16. Be3 $18 (16. Rxb7 Bg4 $16)) 16. Bb2 {[%emt 0:01:43]} Bxf3 {[%emt 0:05:06]} 17. Bxf3 {[%emt 0:00:04]} Qf6 {[%emt 0:02:02]} 18. Qc3 {[%emt 0:04:57]} Qg6 {[%emt 0:05:50]} ({Black should play} 18... Rad8 $11 19. e5 Qg6 20. Bxc6 bxc6) 19. Qb3 {[%emt 0:10:16]} (19. Rd3 $1 $14) 19... Rad8 $11 {[%emt 0:02:52]} 20. d5 {[%emt 0:00:02]} Ne5 {[%emt 0:00:17]} 21. Bxe5 {[%emt 0:00:10]} Rxe5 {[%emt 0:00:01]} 22. Kg2 {[%emt 0:02:18]} Kh8 {[%emt 0:02:31]} 23. Rbc1 {[%emt 0:00:09]} f5 {[%emt 0:02:00]} 24. exf5 {[%emt 0:01:06]} Rxf5 {[%emt 0:00:07]} 25. Rd3 {[%emt 0:01:00]} Re8 {[%emt 0:03:27]} 26. Rc2 {[%emt 0:00:49][%cal Od5d6]} Qf6 {[%emt 0:06:31]} 27. d6 {[%emt 0:00:02]} cxd6 {[%emt 0:00:43]} 28. Rcd2 {[%emt 0:01:08]} ({Much worse is} 28. Bxb7 Rxf2+ (28... Bxf2 29. Bc8 $16) 29. Kh3 Qf5+ 30. g4 Qf6 $17 (30... Qxd3+ 31. Qxd3 Re3+ 32. Qxe3 $11)) 28... Qf8 {[%emt 0:10:09]} 29. Qb2 {[%emt 0:00:35] [#]} Be3 $1 {[%emt 0:01:43]} 30. Bg4 {[%emt 0:00:32]} (30. Rxe3 Rxe3) 30... Bxd2 {[%emt 0:00:55]} 31. Bxf5 {[%emt 0:00:07]} Qxf5 {[%emt 0:00:22]} 32. Rxd2 {[%emt 0:00:52][%mdl 4096] Endgame. KQR-KQR} Qe4+ {[%emt 0:00:26]} 33. f3 {[%emt 0:00:02]} Qe1 {[%emt 0:00:59][%cal Ob7b5]} 34. Qd4 {[%emt 0:00:30]} (34. Rc2 $11) 34... Re2+ $19 {[%emt 0:00:46]} 35. Rxe2 {[%emt 0:00:02]} Qxe2+ {[%emt 0:00:03]} 36. Qf2 $2 {[%emt 0:00:34] [#] Loses the game.} (36. Kg1 $17) 36... Qxf2+ {[%emt 0:01:24]} 37. Kxf2 {[%emt 0:00:02] KP-KP} Kg8 {[%emt 0:00:01]} 38. Ke3 {[%emt 0:00:20]} Kf7 {[%emt 0:00:00]} 39. Kd4 {[%emt 0:01:36]} Ke6 {[%emt 0:00:01]} 40. h4 {[%emt 0:00:52]} h5 {[%emt 0:01:55]} 41. Ke4 {[%emt 0:30:23]} d5+ {[%emt 0:06:25]} 42. Kd4 {[%emt 0:00:00]} Kd6 {[%emt 0:00:26]} 43. g4 {[%emt 0:00:00]} g6 {[%emt 0:00:11]} 44. a4 {[%emt 0:00:00]} b6 {[%emt 0:02:58]} 45. Ke3 {[%emt 0:00:00]} Ke5 {[%emt 0:00:21]} 46. f4+ {[%emt 0:00:00] Weighted Error Value: White=0.73/Black=0.07 (flawless) .  Loses game:     	White=1     	---        Mistake:       	White=2     	Black=1      OK:         	White=9     	Black=8      Best:        	White=2     	Black=4} 0-1